Cogmind - Beta 9.2 @@@ ROGUE MODE // 2019.11.20 @ 19:00:50 Player: Alexbot Result: Destroyed by P-80 Master with Gamma Rifle Performance ------------- Evolutions (9) 4500 Regions Visited (32) 6400 Robots Destroyed (427) 2135 Value Destroyed (19831) 19831 Prototype IDs (78) 1560 Alien Tech Used (0) 0 Bonus (14731) 14731 TOTAL SCORE: 49157 Bonus ------- Trapped 1000 High Alert Combat Kills 1952 Follower Combat Kills 2846 Entered Garrisons 200 Used RIF Installer 500 Network Hubs Disabled 400 Aligned with FarCom 300 Met Data Miner 300 Destroyed Z-Imprinter 1000 Triggered Deep Caves Wall 1000 Exposed GOLEM Chamber 5500 Built Enhanced Grunts 300 A7 Reached Mainframe 300 Met R17 at Cetus 500 Friendly Fire -1367 Cogmind --------- Core Integrity 0/1600 Matter 285/300 Energy 75/100 System Corruption 44% Temperature Cool (0) Movement Core (50) Location -1/Access Parts ------- > --- POWER (2) -------- (None) > --- PROPULSION (5) --- (None) > --- UTILITY (14) ----- (None) > --- WEAPON (4) ------- (None) > --- INVENTORY (4) ---- Advanced Particle Charger Improved Force Field Advanced Force Field Relay Coupler [NC] (27) Peak State ------------ > --- POWER ------------ Micro Fission Core Micro Fission Core > --- PROPULSION ------- Combat Antigrav System Combat Antigrav System Combat Antigrav System Combat Antigrav System Combat Linear Gravjet > --- UTILITY ---------- Advanced Coolant Injector Medium Storage Unit Large Storage Unit Large Storage Unit Large Storage Unit High-capacity Storage Unit Small Battery Advanced Target Analyzer Improved Core Analyzer Advanced Armor Integrity Analyzer Advanced Transmission Jammer Advanced Reaction Control System Improved Force Field Advanced System Shield > --- WEAPON ----------- Railgun Railgun Railgun Force Lance > --- INVENTORY -------- Micro Fission Core Reinforced Antimatter Reactor Armored Medium Treads Advanced Heavy Treads Advanced Heavy Treads Improved Heavy Siege Treads Advanced Coolant Injector Medium Matter Pod Experimental Terrain Scanner Precision Matter Filter Advanced Particle Charger Improved Overload Amplifier Advanced Reaction Control System Advanced Powered Armor Advanced Powered Armor Improved Force Field Advanced Force Field System Restoration Module Tesla Rifle Tesla Rifle Tesla Rifle Gamma Rifle Gamma Rifle Gamma Rifle Quantum Rifle HERF Cannon Compact HERF Cannon Heavy Machine Gun Heavy Machine Gun Heavy Machine Gun Advanced Remote Datajack [Rating: 167] Favorites ----------- Power Assembled Flux Generator Engine Ion Engine Power Core Micro Fission Core Reactor Assembled Flux Generator Propulsion Advanced Heavy Siege Treads Treads Advanced Heavy Siege Treads Leg Assembled Alloy Leg Wheel Armored Huge Wheel Hover Unit Combat Antigrav System Flight Unit Q-thruster Utility High-capacity Storage Unit Device Microactuators Storage High-capacity Storage Unit Processor Improved Core Analyzer Hackware Ghost Barrier Protection Light Regenerative Plating Weapon Assembled Focal Cannon Energy Gun Gamma Rifle Energy Cannon Assembled Focal Cannon Ballistic Gun Railgun Ballistic Cannon Hypervelocity Gauss Cannon Launcher Heavy Missile Launcher Special Weapon Field Lobotomy Kit Slashing Weapon Chainsword Piercing Weapon Force Lance Special Melee Weapon Improved Datajack Build | -11 -10 -10 -10 -9 -8 -7 -7 -7 -7 -7 -7 -6 -6 -6 -6 -6 -6 -6 -6 -5 -5 -5 -5 -5 -5 -5 -5 -5 -4 -3 -2 -1 ------- Run | Scr Mat Min Exi Min Mat Fac Was Fac Low Low Dat Pro Fac Was Fac Low Low Zio Dee Pro Fac Was Fac Ext Cet Arc Hub Gar Fac Res Res Acc Slots Evolved 18 | . . . . . 4 2 . . . . . . 2 . . . . . . . 2 . . . . . . . 2 2 2 2 Power 1 | . . . . . . . . . . . . . . . . . . . . . 1 . . . . . . . . . . . Propulsion 3 | . . . . . . . . . . . . . . . . . . . . . . . . . . . . . . 2 . 1 Utility 12 | . . . . . 4 2 . . . . . . 2 . . . . . . . 1 . . . . . . . 2 . . 1 Weapon 2 | . . . . . . . . . . . . . . . . . . . . . . . . . . . . . . . 2 . Parts Attached 501 | 6 2 2 1 1 10 8 10 1 1 1 2 16 7 2 23 12 5 4 39 8 13 8 13 13 3 1 12 4 49 102 35 87 Power 27 | 1 . . . . 1 1 1 . . . . 1 1 . 1 1 1 . 3 1 . . . . . . . . 3 7 1 3 Engine 3 | 1 . . . . . . . . . . . . 1 . . . . . . . . . . . . . . . 1 . . . Core 15 | . . . . . 1 1 . . . . . 1 . . 1 1 1 . 1 1 . . . . . . . . . 4 1 2 Reactor 9 | . . . . . . . 1 . . . . . . . . . . . 2 . . . . . . . . . 2 3 . 1 Propulsion 83 | 2 . 1 . . 1 1 1 . 1 . . . 1 . . 2 . 3 2 . 1 . . . . . . . 8 24 4 31 Treads 34 | . . 1 . . 1 . . . 1 . . . . . . 2 . 1 . . 1 . . . . . . . 4 7 4 12 Leg 2 | . . . . . . . . . . . . . . . . . . . 1 . . . . . . . . . 1 . . . Wheel 11 | 2 . . . . . 1 1 . . . . . 1 . . . . 1 1 . . . . . . . . . 3 1 . . Hover 32 | . . . . . . . . . . . . . . . . . . 1 . . . . . . . . . . . 12 . 19 Flight 4 | . . . . . . . . . . . . . . . . . . . . . . . . . . . . . . 4 . . Utility 205 | 1 1 . 1 1 2 5 2 1 . 1 . 6 2 . 7 2 1 . 14 5 12 3 13 8 2 1 11 4 26 40 18 15 Device 112 | . 1 . . . 1 4 . 1 . 1 . 2 . . 1 1 1 . 2 4 8 1 13 4 2 1 6 2 15 19 12 10 Storage 29 | 1 . . 1 1 1 . . . . . . 1 1 . 2 . . . 1 . 1 2 . 4 . . . . 3 6 1 3 Processor 6 | . . . . . . . . . . . . . . . . . . . . . . . . . . . . . 1 3 1 1 Hackware 10 | . . . . . . . . . . . . . 1 . 1 . . . . . 2 . . . . . . . 3 1 1 1 Protection 48 | . . . . . . 1 2 . . . . 3 . . 3 1 . . 11 1 1 . . . . . 5 2 4 11 3 . Artifact . | . . . . . . . . . . . . . . . . . . . . . . . . . . . . . . . . . Weapon 186 | 2 1 1 . . 6 1 6 . . . 2 9 3 2 15 7 3 1 20 2 . 5 . 5 1 . 1 . 12 31 12 38 Energy Gun 40 | 2 . . . . . . . . . . . 3 . . 3 2 1 . 2 . . . . . . . . . . 14 3 10 Energy Cannon 25 | . 1 1 . . 1 . . . . . . . . . . . 2 . 5 . . . . . . . . . 2 7 . 6 Ballistic Gun 37 | . . . . . 2 . 2 . . . 1 1 . . 3 2 . 1 1 . . . . . . . . . 2 5 6 11 Ballistic Cannon 10 | . . . . . . . . . . . . . . . . . . . . . . 3 . 2 . . 1 . 2 2 . . Launcher 33 | . . . . . 2 . 2 . . . . 4 2 2 4 3 . . 6 2 . . . 1 1 . . . 2 . . 2 Special Weapon 14 | . . . . . . . 1 . . . 1 1 . . . . . . 4 . . 2 . 1 . . . . 4 . . . Impact Weapon . | . . . . . . . . . . . . . . . . . . . . . . . . . . . . . . . . . Slashing Weapon 11 | . . . . . . 1 1 . . . . . 1 . 5 . . . 1 . . . . 1 . . . . . 1 . . Piercing Weapon 15 | . . . . . 1 . . . . . . . . . . . . . . . . . . . . . . . . 2 3 9 Special Melee Weapon 1 | . . . . . . . . . . . . . . . . . . . 1 . . . . . . . . . . . . . Unidentified Prototypes 15 | . . . . . . . . . . . . . . . 1 . . 1 7 . . . 1 . . . 3 . . 1 1 . Parts Lost 109 | . . 2 . . 4 . 2 . . . . 5 1 . 2 2 3 . 5 2 . . . . . . . . 17 17 4 43 Power 17 | . . . . . 1 . . . . . . 1 . . 1 1 1 . 2 1 . . . . . . . . 3 3 . 3 Propulsion 21 | . . 1 . . 1 . . . . . . . . . . . . . . . . . . . . . . . 4 6 . 9 Utility 31 | . . . . . . . 2 . . . . 3 . . 1 . . . 3 1 . . . . . . . . 5 2 3 11 Weapon 40 | . . 1 . . 2 . . . . . . 1 1 . . 1 2 . . . . . . . . . . . 5 6 1 20 Highest Loss Streak 14 | . . 2 . . 2 . 2 . . . . 4 1 . 1 2 3 . 2 2 . . . . . . . . 6 7 2 14 Average Slot Usage (%) 84 | . 100 99 100 100 68 86 87 92 92 91 92 90 91 93 92 93 86 86 89 90 83 81 82 82 82 82 79 86 76 56 90 86 Core 2 | . . . . . 4 7 3 . . . . 4 4 . 4 6 6 6 2 1 . . . . . . . . . 4 8 7 Reactor 2 | . . . . . . . 3 7 7 7 7 2 . . . . . . 3 4 5 5 5 5 5 5 5 5 4 1 . . Treads 4 | . . 8 14 14 15 5 . . 6 7 7 7 . . . 5 6 5 2 . 3 5 5 5 5 5 5 5 3 1 12 6 Wheel 1 | . 28 18 14 14 1 4 7 7 . . . . 5 6 6 . . . 3 1 . . . . . . . . 2 . . . Hover 1 | . . . . . . . . . . . . . . . . . . . . . . . . . . . . . . 6 . 9 Device 10 | . 14 14 14 3 6 28 25 23 23 22 23 7 6 6 6 6 6 6 2 9 11 11 11 11 11 11 6 10 10 11 12 11 Storage 31 | . 14 14 14 24 22 23 23 23 23 23 23 29 32 33 41 46 46 46 46 46 35 34 35 35 35 35 35 35 24 7 17 21 Processor 1 | . . . . . . . . . . . . . . . . . . . . . . . . . . . . . 1 3 6 9 Hackware 4 | . . . . . . . . . . . . . 5 6 5 6 6 6 2 . 3 11 11 11 11 11 8 5 8 1 3 5 Protection 6 | . . . . . . 1 9 15 15 15 15 21 20 20 11 5 6 6 11 3 6 . . . . . 4 10 9 6 10 . Energy Cannon 3 | . 7 24 28 28 8 . . . . . . . . . . . 3 6 5 7 5 3 4 5 5 5 5 5 4 2 . . Ballistic Gun 2 | . . . . . 5 7 5 7 7 7 5 6 1 . 2 5 . . 1 . . . . . . . . . 1 . 10 8 Ballistic Cannon 1 | . . . . . . . . . . . . . . . . . . . . . . 4 5 2 . . 4 4 1 1 . . Launcher 1 | . . . . . 1 . 4 . . . . 3 4 13 . . . . . 1 5 . . 2 5 5 . . . . . . Slashing Weapon 1 | . . . . . . 6 3 7 7 7 7 2 4 . 8 1 . . 1 2 . . . . . . . . . . . . Naked Turns 98 | . . . . . . . . . . . . . . . . . . . . . . . . . . . . . 21 54 . 23 Heaviest Build 246 | 13 15 16 44 75 109 120 139 140 140 143 147 162 163 168 178 165 170 172 182 192 203 202 202 199 196 200 246 246 216 125 142 154 Greatest Support 172 | 20 20 20 10 10 40 40 28 28 70 70 70 70 70 28 28 70 70 70 70 60 80 80 80 80 80 80 80 80 80 145 145 172 Greatest Overweight (x) 7 | . . 1 4 7 7 4 4 4 4 2 2 2 5 5 6 5 2 2 6 6 3 2 2 2 2 2 3 3 7 6 1 4 Average Overweight (x) 2 | . . . 1 6 2 3 3 4 1 1 2 1 4 5 5 2 2 2 4 3 2 1 2 2 2 2 2 2 3 . . . Largest Inventory Capacity 48 | 6 6 6 12 20 28 28 28 28 28 28 28 34 38 38 48 48 48 48 48 48 40 40 40 40 40 40 40 40 40 24 24 34 Average Capacity 35 | 5 6 6 7 18 23 28 28 28 28 28 28 33 37 38 44 48 48 48 48 45 38 39 40 38 40 40 40 40 34 9 24 31 Most Carried 48 | 4 6 6 8 15 27 28 28 28 28 28 28 32 35 35 48 48 48 48 48 48 40 40 40 40 40 40 40 40 40 24 24 34 Average Carried 33 | 2 5 4 5 13 20 27 27 27 27 28 28 29 33 35 41 47 47 47 47 45 38 36 39 38 39 40 39 37 29 8 23 29 Final Capacity 48 | 6 6 6 12 20 28 28 28 28 28 28 28 34 38 38 48 48 48 48 48 38 40 40 40 40 40 40 40 40 4 24 24 4 Final Carried 48 | 4 6 4 8 15 27 27 28 28 28 28 28 32 35 35 48 48 48 48 48 37 40 37 40 39 40 40 40 38 2 23 23 4 Class Distribution -------------------- 56% | Hauler-Mutant 12% | Hauler-Golem 11% | Scavenger-Mutant 5% | Mutant 5% | Hacker-Mutant 3% | Commander-Golem Dominant Class ---------------- Mutant | -10/Materials Mutant | -10/Mines Mutant | -10/Exiles Hauler-Mutant | -9/Mines Hauler-Mutant | -8/Materials Hauler-Mutant | -7/Factory Hauler-Mutant | -7/Waste Hauler-Mutant | -7/Factory Hauler-Mutant | -7/Lower Caves Hauler-Mutant | -7/Lower Caves Hauler-Mutant | -7/Data Miner Hauler-Mutant | -6/Proximity Caves Hauler-Mutant | -6/Factory Hauler-Mutant | -6/Waste Hauler-Mutant | -6/Factory Hauler-Mutant | -6/Lower Caves Hauler-Mutant | -6/Lower Caves Hauler-Mutant | -6/Zion Hauler-Mutant | -6/Deep Caves Hauler-Golem | -5/Proximity Caves Hauler-Mutant | -5/Factory Hauler-Mutant | -5/Waste Hauler-Golem | -5/Factory Hauler-Mutant | -5/Extension Commander-Golem | -5/Cetus Commander-Golem | -5/Archives Hauler-Mutant | -5/Hub_04(d) Hauler-Mutant | -5/Garrison Hacker-Mutant | -4/Factory Scavenger-Mutant | -3/Research Scavenger-Mutant | -2/Research Scavenger-Mutant | -1/Access Resources | -11 -10 -10 -10 -9 -8 -7 -7 -7 -7 -7 -7 -6 -6 -6 -6 -6 -6 -6 -6 -5 -5 -5 -5 -5 -5 -5 -5 -5 -4 -3 -2 -1 ----------- Run | Scr Mat Min Exi Min Mat Fac Was Fac Low Low Dat Pro Fac Was Fac Low Low Zio Dee Pro Fac Was Fac Ext Cet Arc Hub Gar Fac Res Res Acc Matter Collected 12162 | 238 42 15 . 20 243 98 665 40 17 10 . 468 105 238 452 597 110 . 697 155 223 223 484 299 158 . 913 374 1152 1802 758 1566 Remotely . | . . . . . . . . . . . . . . . . . . . . . . . . . . . . . . . . . Salvage Created 23041 | . 123 179 . . 601 182 1417 . . . . 345 72 247 1010 536 401 . 1991 394 477 533 534 293 . . 2075 865 3197 2685 1093 3791 Parts 930 | . 7 20 . . 28 11 6 . . . . 17 5 . 40 14 7 . 36 14 35 9 25 23 . . 109 30 141 116 63 174 Haulers Intercepted 6 | . . . . . . . . . . . . . . . 2 . . . . . . . . . . . 2 . 1 1 . . Recyclers Shooed 11 | . . . . . . . . . . . . . . . 2 . . . . . . . . 1 . . . . 3 2 . 3 Parts Field Recycled . | . . . . . . . . . . . . . . . . . . . . . . . . . . . . . . . . . Retrieved Matter . | . . . . . . . . . . . . . . . . . . . . . . . . . . . . . . . . . Parts Self-Destructed 51 | . . . . . . . . . . 4 . 11 . . . 17 9 . . 10 . . . . . . . . . . . . Prevented 1 | . . . . . . . . . . . . . . . . 1 . . . . . . . . . . . . . . . . Kills | -11 -10 -10 -10 -9 -8 -7 -7 -7 -7 -7 -7 -6 -6 -6 -6 -6 -6 -6 -6 -5 -5 -5 -5 -5 -5 -5 -5 -5 -4 -3 -2 -1 ------- Run | Scr Mat Min Exi Min Mat Fac Was Fac Low Low Dat Pro Fac Was Fac Low Low Zio Dee Pro Fac Was Fac Ext Cet Arc Hub Gar Fac Res Res Acc Combat Hostiles Destroyed 360 | . 2 9 . . 13 2 6 . . . . 17 4 1 16 12 7 . 53 13 8 2 10 11 . . 32 16 38 26 19 43 Melee 18 | . . . . . . 2 . . . . . . 1 . 3 . . . 9 2 . . . . . . . . 1 . . . Guns 82 | . 1 3 . . 3 . 2 . . . . 4 . . 4 8 6 . . . . . . . . . . . 2 10 18 21 Cannons 115 | . 1 6 . . 5 . . . . . . . . . . . 1 . . 2 8 2 10 3 . . 29 16 20 10 . 2 AOE 108 | . . . . . 5 . 4 . . . . 13 3 1 9 4 . . 39 9 . . . 8 . . 3 . 5 . . 5 Classes Destroyed 21 | . 2 2 . . 4 . 1 . . . . 4 1 . 1 . 1 . 4 . . . . . . . . . . 1 . . Worker 22 | . . 1 . . . 1 . . . . . . . . 2 . . . . . . . . . . . 6 . 1 5 1 5 Builder 14 | . . . . . 1 . . . . . . . . . 2 . . . . . . . . 2 . . . . 6 . . 3 Hauler 6 | . . . . . . . . . . . . . . . 2 . . . . . . . . . . . 2 . 1 1 . . Recycler 11 | . . . . . 1 . . . . . . . . . 1 . . . . . . . . . . . . . 4 4 . 1 Mechanic 1 | . . . . . . . . . . . . . . . . . . . . . . . . . . . . . . 1 . . Watcher 10 | . 1 . . . . 1 . . . . . . 1 . 1 . . . . . . . . . . . 3 . . 3 . . Swarmer 55 | . . 9 . . . . . . . . . 5 3 . . 2 . . . 3 . . . 7 . . 9 2 4 . 10 1 Saboteur 1 | . . . . . . . . . . . . 1 . . . . . . . . . . . . . . . . . . . . Grunt 95 | . 2 . . . 10 1 . . . . . 3 . . 10 4 1 . . 5 . . 3 4 . . 4 13 13 8 1 13 Brawler 11 | . . . . . . . . . . . . 2 . . 1 2 . . . . . . . . . . 1 . . . 2 3 Duelist 11 | . . . . . . . . . . . . 4 . . 1 2 1 . . . . . . . . . 1 . . . . 2 Sentry 29 | . . . . . 1 1 . . . . . 1 . . 1 2 . . . . 2 . 1 . . . 6 1 4 5 1 3 Hunter 32 | . . . . . 2 . . . . . . . . . 1 . . . . 2 1 . 2 . . . 2 . 10 2 . 10 Programmer 53 | . . . . . . . . . . . . . 1 . 2 . 1 . . 3 5 . 4 . . . 3 . 7 11 5 11 Behemoth 1 | . . . . . . . . . . . . 1 . . . . . . . . . . . . . . . . . . . . Compactor 9 | . . . . . . . 6 . . . . . . 1 . . . . . . . 2 . . . . . . . . . . Lightning 6 | . . . . . . . . . . . . . . . . . . . . . . . . . . . 6 . . . . . Z-Light 5 | . . . . . . . . . . . . . . . . . . . 5 . . . . . . . . . . . . . Assembler 1 | . . . . . . . . . . . . . . . . . . . 1 . . . . . . . . . . . . . Assembled 34 | . . . . . . . . . . . . . . . . . . . 34 . . . . . . . . . . . . . Golem 14 | . . . . . . . . . . . . . . . . . . . 14 . . . . . . . . . . . . . Thug 3 | . . . . . . . . . . . . . . . . . 3 . . . . . . . . . . . . . . . Butcher 1 | . . . . . . . . . . . . . . . . . . . 1 . . . . . . . . . . . . . Mutant 1 | . . . . . . . . . . . . . . . . . 1 . . . . . . . . . . . . . . . Best Kill Streak 32 | . 2 3 . . 5 3 2 . . . . 13 3 1 6 9 4 . 32 6 2 1 3 4 . . 14 4 21 5 6 15 Combat Bots Only 32 | . 2 3 . . 3 1 2 . . . . 13 3 1 4 9 4 . 32 6 2 1 3 4 . . 6 4 14 4 5 11 Max Kills in Single Turn 10 | . 1 1 . . 2 1 1 . . . . 3 1 1 3 1 1 . 10 3 1 1 1 4 . . 7 2 3 1 2 3 Gunslinging 1 | . . . . . . . . . . . . . . . . . . . . . . . . . . . . . . . 1 . Exploded 10 | . . . . . 2 . 1 . . . . 3 1 1 2 1 . . 10 3 . . . 4 . . 3 . 1 . . 2 Melee 1 | . . . . . . 1 . . . . . . 1 . 1 . . . 1 1 . . . . . . . . 1 . . . Uniques/NPCs Destroyed 2 | . . . . . . . . . . . . 1 . . . . . . 1 . . . . . . . . . . . . . Data Miner (-6/Proximity Caves) Z-Imprinter (-6/Deep Caves) Combat | -11 -10 -10 -10 -9 -8 -7 -7 -7 -7 -7 -7 -6 -6 -6 -6 -6 -6 -6 -6 -5 -5 -5 -5 -5 -5 -5 -5 -5 -4 -3 -2 -1 -------- Run | Scr Mat Min Exi Min Mat Fac Was Fac Low Low Dat Pro Fac Was Fac Low Low Zio Dee Pro Fac Was Fac Ext Cet Arc Hub Gar Fac Res Res Acc Damage Taken 35290 | . 71 197 . . 756 236 83 93 . 23 . 1418 172 6 777 1081 459 . 2299 1145 270 47 308 225 . . 566 1070 5703 5111 1855 11319 Core 5183 | . . 15 . . 154 25 . 36 . . . 154 58 . 74 69 13 . 257 223 64 . 22 76 . . . 48 1126 1110 55 1604 Absorbed by Shields 2968 | . . . . . . . . . . . . . 4 . . . . . . 151 162 . 261 232 . . 403 322 1013 82 95 243 Reduced by Siege Mode 1389 | . . . . . . . . . . . . . . . . 28 21 . . . 17 . 72 . . . 24 126 117 68 58 858 Core Remaining (%) 60 | 100 . . . 94 72 . . . . . . 69 . . . . . . . 18 . . . . . . . 79 2 14 96 . Volleys Fired 1128 | . 7 19 . . 47 1 45 . . . 1 37 9 7 29 23 25 . 49 23 52 16 24 47 2 . 127 42 153 151 39 153 Largest 4 | . 2 2 . . 2 1 2 . . . 1 2 1 2 2 2 2 . 2 2 1 1 2 2 1 . 2 2 2 2 4 4 Hottest 215 | . 100 120 . . 120 28 66 . . . . 108 39 78 108 108 108 . 135 50 39 61 86 86 25 . 86 86 120 169 199 215 Shots Fired 1640 | . 14 38 . . 62 1 64 . . . 1 41 9 14 33 34 34 . 64 31 52 15 49 53 2 . 168 74 183 196 115 293 Gun 645 | . 9 6 . . 19 1 21 . . . . 19 . . 19 26 29 . 13 . . . . . . . . . 22 108 115 238 Cannon 785 | . 5 32 . . 34 . . . . . . . . . . . 5 . 27 19 51 14 49 42 2 . 168 74 130 88 . 45 Launcher 190 | . . . . . 9 . 42 . . . . 17 9 14 14 8 . . 19 12 1 . . 10 . . . . 25 . . 10 Special 20 | . . . . . . . 1 . . . 1 5 . . . . . . 5 . . 1 . 1 . . . . 6 . . . Kinetic 669 | . . . . . 19 1 21 . . . . 15 . . 7 12 9 . 3 . . 14 24 6 . . 91 33 55 90 96 173 Thermal 527 | . 7 32 . . 34 . 1 . . . . 9 . . 7 14 21 . 7 19 51 . 25 36 2 . 77 41 92 5 4 43 Explosive 153 | . . . . . 9 . 42 . . . . 17 5 14 14 6 . . 19 12 1 . . 10 . . . . 4 . . . Electromagnetic 281 | . 7 6 . . . . . . . . . . 4 . 5 2 4 . 34 . . . . . . . . . 26 101 15 77 Robot Hit Streak 40 | . 5 7 . . 11 1 8 . . . 3 16 . 8 8 26 12 . 37 10 11 12 21 21 2 . 23 24 23 40 25 40 Robot Miss Streak 6 | . 2 3 . . 4 . 6 . . . . 4 6 1 6 3 4 . 6 3 2 1 1 1 . . 4 2 5 3 2 3 Penetration Max 2 | . . . . . . . . . . . . . . . . . . . . . . . . . . . 1 1 1 2 1 1 Secondary Targets 9 | . . . . . . . . . . . . . . . . . . . . . . . . . . . . . . 3 3 3 Max Gunslinging Chain 1 | . . . . . . . . . . . . . . . . . . . . . . . . . . . . . . 1 1 1 Capacitor 11 | . . . . . . . . . . . . . . . . . . . . . . . . . . . . . . 11 . . Shots Hit Robots 1265 | . 9 18 . . 42 12 44 . . . 1 35 2 12 41 32 31 . 87 25 19 11 40 28 1 . 111 61 118 156 86 243 Core Hits 905 | . 5 10 . . 35 6 25 . . . . 51 6 4 50 40 33 . 133 24 10 2 15 32 . . 64 24 80 75 44 137 Critical Hits 133 | . . . . . . 1 . . . . . 1 . . 1 . . . 6 . . 5 11 2 . . 38 22 16 4 4 22 Critical Kills 53 | . . . . . . . . . . . . . . . 1 . . . 5 . . 2 4 . . . 17 7 7 1 2 7 Critical Parts Destroyed 76 | . . . . . . 1 . . . . . 1 . . . . . . 1 . . 1 7 2 . . 20 15 9 3 2 14 Melee Attacks 228 | . . . . . 1 18 4 . . . . 3 16 . 34 . . . 48 11 . . . 3 . . . . . 16 31 43 Impact . | . . . . . . . . . . . . . . . . . . . . . . . . . . . . . . . . . Slashing 143 | . . . . . . 18 4 . . . . 3 16 . 34 . . . 47 11 . . . 3 . . . . . 7 . . Piercing 84 | . . . . . 1 . . . . . . . . . . . . . . . . . . . . . . . . 9 31 43 Sneak Attacks 10 | . . . . . . 1 . . . . . . . . 4 . . . 1 1 . . . . . . . . . 3 . . Combat Hostiles 1 | . . . . . . . . . . . . . . . . . . . . 1 . . . . . . . . . . . . Follow-up Attacks 1 | . . . . . . . . . . . . . . . 1 . . . . . . . . . . . . . . . . . Damage Inflicted 57093 | . 140 260 . . 1558 528 3318 . . . . 2995 564 1322 2839 1175 882 . 6494 2380 994 182 1135 1898 48 . 3952 2010 6485 5510 2259 8165 Guns 12552 | . 77 33 . . 296 20 514 . . . . 426 . . 339 565 765 . 113 . . . . . . . . . 305 2040 2213 4846 Cannons 18121 | . 34 227 . . 416 . . . . . . . . . . . 117 . 613 519 994 182 1135 881 48 . 2998 2010 3257 2882 . 1808 Explosions 21564 | . 29 . . . 846 . 2804 . . . . 2447 492 1322 1689 610 . . 3571 1387 . . . 1017 . . 954 . 2867 144 . 1385 Melee 4620 | . . . . . . 508 . . . . . 66 72 . 811 . . . 2151 474 . . . . . . . . . 444 46 48 Ramming 134 | . . . . . . . . . . . . . . . . . . . . . . . . . . . . . 56 . . 78 Kinetic 12481 | . . . . . 296 20 514 . . . . 323 . . 99 225 233 . 24 . . 182 328 61 . . 928 511 698 2800 1821 3418 Thermal 14304 | . 63 227 . . 416 . . . . . . 159 . . 190 340 546 . 173 519 994 . 807 820 48 . 2070 1499 3288 234 102 1809 Explosive 16484 | . . . . . 846 . 2804 . . . . 2447 450 1322 1640 457 . . 3495 1387 . . . 1017 . . . . 619 . . . Electromagnetic 9070 | . 77 33 . . . . . . . . . . 42 . 99 153 103 . 651 . . . . . . . 954 . 1824 2032 290 2812 Impact . | . . . . . . . . . . . . . . . . . . . . . . . . . . . . . . . . . Slashing 4259 | . . . . . . 508 . . . . . 66 72 . 811 . . . 2151 474 . . . . . . . . . 177 . . Piercing 361 | . . . . . . . . . . . . . . . . . . . . . . . . . . . . . . 267 46 48 Highest Corruption 44 | . . . . . 4 4 4 4 3 . . . . . 2 2 7 7 . 1 4 24 24 5 2 . 7 7 22 24 5 44 Average Corruption 7 | . . . . . 2 1 4 3 2 . . . . . 2 2 6 7 . 1 1 14 13 3 1 . 6 7 13 16 2 15 Corruption Purged 64 | . . . . . . . . 1 3 . . . . . . . . . . 1 7 . 20 3 2 . . . 1 20 6 . Effects 523 | . . . . . 3 4 24 3 9 . . . . . 8 3 21 2 . 2 6 12 89 27 5 . 57 30 60 106 6 46 Message Errors 120 | . . . . . 2 2 6 2 4 . . . . . 4 3 7 2 . 2 2 1 18 10 1 . 12 5 10 19 2 6 Matter Fused 89 | . . . . . 1 . 3 1 1 . . . . . . . 2 . . . 1 3 26 5 . . 10 7 12 14 1 2 Heat Flow Errors 48 | . . . . . . 1 2 . 1 . . . . . 1 . 3 . . . 1 2 9 3 2 . 5 4 4 7 . 3 Energy Discharges 51 | . . . . . . 1 3 . 2 . . . . . . . 2 . . . 1 1 7 4 1 . 4 3 5 9 2 6 Parts Rejected 3 | . . . . . . . 1 . . . . . . . . . 1 . . . . . . . . . . . . 1 . . Data Loss (minor) 45 | . . . . . . . 4 . 1 . . . . . 3 . 4 . . . . . 9 2 1 . 2 3 5 9 1 1 Data Loss (major) 14 | . . . . . . . . . . . . . . . . . . . . . . 2 4 . . . 2 1 2 2 . 1 Misfires 9 | . . . . . . . . . . . . . . . . . 1 . . . . . 3 . . . 3 . 1 1 . . Alerts 5 | . . . . . . . . . . . . . . . . . . . . . . . 2 . . . . . 1 2 . . Misdirections 24 | . . . . . . . . . . . . . . . . . . . . . . . 1 . . . . . 8 12 . 3 Targeting Errors 93 | . . . . . . . 4 . . . . . . . . . . . . . 1 2 9 3 . . 13 5 11 27 . 18 Weapon Failures 22 | . . . . . . . 1 . . . . . . . . . 1 . . . . 1 1 . . . 6 2 1 3 . 6 Overload Shots . | . . . . . . . . . . . . . . . . . . . . . . . . . . . . . . . . . Overflow Damage 1977 | . . . . . 13 46 . . . . . 69 39 . 140 18 21 . 140 153 32 . 23 93 . . 239 184 399 281 . 87 Projectiles 988 | . . . . . . . . . . . . . . . . . 21 . 18 11 32 . 23 73 . . 155 184 272 112 . 87 Explosions 566 | . . . . . 13 . . . . . . 69 39 . 13 18 . . 111 77 . . . 20 . . 84 . 122 . . . Melee 423 | . . . . . . 46 . . . . . . . . 127 . . . 11 65 . . . . . . . . 5 169 . . Knockbacks 47 | . . . . . . . . . . . . . . . . . . . . . . . 2 1 . . 8 7 8 18 . 3 Impact 5 | . . . . . . . . . . . . . . . . . . . . . . . . . . . . . 2 . . 3 Kinetic 37 | . . . . . . . . . . . . . . . . . . . . . . . 2 1 . . 8 7 4 15 . . Secondary 5 | . . . . . . . . . . . . . . . . . . . . . . . . . . . . . 2 3 . . Self-Inflicted Damage 1086 | . 23 . . . 48 . 48 . . . . 79 34 6 35 177 . . 159 63 . . . 52 . . 20 . 129 54 . 159 Shots 40 | . 1 . . . 2 . 3 . . . . 4 2 1 1 7 . . 5 1 . . . 1 . . 2 . 3 1 . 6 Rammed 13 | . . . . . . . . . . . . . . . . . . . . . . . . . . . . . 3 . . 10 Targets Rammed 14 | . . . . . . . . . . . . . . . . . . . . . . . . . . . . . 4 . . 10 Kicked . | . . . . . . . . . . . . . . . . . . . . . . . . . . . . . . . . . Crushed 1 | . . . . . . . . . . . . . . . . . . . . . . . . . . . . . 1 . . . Highest Temperature 489 | . 144 190 . . 197 187 239 . 227 . . 184 24 102 114 282 337 . 354 . 251 219 192 179 184 . 307 224 161 489 410 335 Average Temperature 84 | . 53 97 . . 66 99 106 . 121 . . 44 9 42 37 101 86 . 79 . 123 62 76 100 84 . 107 86 46 86 93 92 Received Heat Transfer 4227 | . 27 . . . 252 90 . . . . . 222 . . 210 198 72 . 346 81 16 . 20 44 . . 62 435 710 456 135 851 Effects 13 | . . . . . . . . . 3 . . . . . . . . . 3 . . . . . . . . . . 2 4 1 Shutdowns 2 | . . . . . . . . . . . . . . . . . . . . . . . . . . . . . . 1 1 . Energy Bleed 1 | . . . . . . . . . . . . . . . . . . . . . . . . . . . . . . . 1 . Interference 9 | . . . . . . . . . 3 . . . . . . . . . 3 . . . . . . . . . . 1 2 . Damage (minor) 1 | . . . . . . . . . . . . . . . . . . . . . . . . . . . . . . . . 1 Siege Activations 60 | . . . . . . . . . . . . . . . . 1 3 . . . 5 . 4 1 . . 11 6 10 4 4 11 Total Turns 2719 | . . . . . . . . . . . . . . . . 48 52 . . . 37 . 1401 4 . . 353 106 159 110 103 346 Longest Duration 614 | . . . . . . . . . . . . . . . . 48 31 . . . 10 . 614 4 . . 111 46 26 40 67 91 Robots Corrupted 41 | . . . . . . . . . . . . . . . 1 . . . 5 . . . . . . . 1 . 11 7 1 15 Combat Hostiles 37 | . . . . . . . . . . . . . . . . . . . 5 . . . . . . . . . 10 6 1 15 Parts Fried 70 | . . . . . . . . . . . . . 1 . 1 . 2 . . . . . . 1 . . 2 . 18 22 . 23 Impact Corruptions 2 | . . . . . . . . . . . . . . . . . . . . . . . . . . . . . 1 1 . . Robots Melted . | . . . . . . . . . . . . . . . . . . . . . . . . . . . . . . . . . Combat Hostiles . | . . . . . . . . . . . . . . . . . . . . . . . . . . . . . . . . . Parts Melted 14 | . . . . . 2 . . . . . . 1 . . . 1 3 . 1 1 . . . . . . . . . . 1 4 Heat Transferred 12038 | . 74 481 . . 888 . . . . . . 410 . . 375 775 1175 . 298 300 475 . 400 500 25 . 1100 825 2000 211 111 1615 Parts Sabotaged 4 | . . . . . . . . . . . . . . . . . . . . . . . . . . . . . 2 . . 2 Parts Stolen . | . . . . . . . . . . . . . . . . . . . . . . . . . . . . . . . . . Parts Stripped . | . . . . . . . . . . . . . . . . . . . . . . . . . . . . . . . . . Power Chain Reactions 12 | . 1 . . . . . . . . . . . . . 1 . . . 1 . . . . . . . . . 4 1 . 4 Missiles Intercepted . | . . . . . . . . . . . . . . . . . . . . . . . . . . . . . . . . . Alert | -11 -10 -10 -10 -9 -8 -7 -7 -7 -7 -7 -7 -6 -6 -6 -6 -6 -6 -6 -6 -5 -5 -5 -5 -5 -5 -5 -5 -5 -4 -3 -2 -1 ------- Run | Scr Mat Min Exi Min Mat Fac Was Fac Low Low Dat Pro Fac Was Fac Low Low Zio Dee Pro Fac Was Fac Ext Cet Arc Hub Gar Fac Res Res Acc Peak Influence 1515 | . 117 245 . . 388 111 116 421 . . . . 274 56 569 . . . . . 192 . 74 681 689 129 1436 1515 797 508 384 583 Average Influence 255 | . 26 155 . . 175 76 27 118 . . . . 162 46 215 . . . . . 75 . 38 272 302 97 623 1225 340 261 225 270 Maximum Alert Level 4 | . . 1 . . 1 . . 2 . . . . 1 . 2 . . . . . . . . 2 2 . 4 4 3 2 1 2 Low Security (%) 53 | 100 100 81 . 100 43 100 100 72 . . . . 46 100 42 . . . . . 100 100 100 49 39 100 39 . 14 21 33 29 Level 1 29 | . . 18 . . 56 . . . . . . . 53 . 51 . . . . . . . . 19 21 . 11 . 50 72 66 47 Level 2 8 | . . . . . . . . 27 . . . . . . 5 . . . . . . . . 30 39 . . . 30 6 . 23 Level 3 3 | . . . . . . . . . . . . . . . . . . . . . . . . . . . 31 18 4 . . . Level 4 4 | . . . . . . . . . . . . . . . . . . . . . . . . . . . 17 81 . . . . Level 5 . | . . . . . . . . . . . . . . . . . . . . . . . . . . . . . . . . . High Security . | . . . . . . . . . . . . . . . . . . . . . . . . . . . . . . . . . Max Security . | . . . . . . . . . . . . . . . . . . . . . . . . . . . . . . . . . Squads Dispatched 79 | . 1 . . 1 5 1 . 3 . . . 1 2 . 7 . . . . . 6 . 6 2 . . 4 . 14 7 3 16 Investigation 25 | . . . . 1 2 1 . 2 . . . . 1 . 3 . . . . . 3 . 1 1 . . 1 . 2 4 . 3 Extermination 22 | . . . . . . . . . . . . . 1 . 2 . . . . . 2 . 3 . . . 2 . 3 3 2 4 Reinforcement 17 | . 1 . . . 3 . . . . . . . . . 2 . . . . . 1 . 2 1 . . 1 . 3 . 1 2 Assault 4 | . . . . . . . . . . . . 1 . . . . . . . . . . . . . . . . 1 . . 2 Garrison 11 | . . . . . . . . 1 . . . . . . . . . . . . . . . . . . . . 5 . . 5 Intercept . | . . . . . . . . . . . . . . . . . . . . . . . . . . . . . . . . . Construction Impeded 7 | . . . . . 1 . . . . . . . . . 1 . . . . . . . . 1 . . 1 . 2 . . 1 Haulers Reinforced 2 | . . . . . . . . . . . . . . . 1 . . . . . . . . . . . . . 1 . . . Stealth | -11 -10 -10 -10 -9 -8 -7 -7 -7 -7 -7 -7 -6 -6 -6 -6 -6 -6 -6 -6 -5 -5 -5 -5 -5 -5 -5 -5 -5 -4 -3 -2 -1 --------- Run | Scr Mat Min Exi Min Mat Fac Was Fac Low Low Dat Pro Fac Was Fac Low Low Zio Dee Pro Fac Was Fac Ext Cet Arc Hub Gar Fac Res Res Acc Distress Signals 23 | . 1 . . . 1 1 . . . . . . . . 2 . . . . . 1 . 1 . 2 . 3 . 2 . 2 7 Communications Jammed 15 | . . . . . . . . . . . . . . . . . . . . . . . . . . . . . . 1 . 14 Distress Signals 15 | . . . . . . . . . . . . . . . . . . . . . . . . . . . . . . 1 . 14 Times Spotted 557 | . 6 9 . . 27 6 6 4 . 2 . 24 5 6 25 14 10 . 63 14 14 5 11 25 13 1 38 23 70 36 23 77 Peak Tracking Total 37 | . 4 3 . . 6 2 3 3 . 1 . 9 3 5 6 9 4 . 37 6 3 3 3 5 5 1 5 6 10 4 6 10 Tactical Retreats 42 | . . . . . 1 1 . . . . . 1 . 1 1 2 . . 3 1 1 . 1 2 . . 2 7 6 2 3 7 Traps | -11 -10 -10 -10 -9 -8 -7 -7 -7 -7 -7 -7 -6 -6 -6 -6 -6 -6 -6 -6 -5 -5 -5 -5 -5 -5 -5 -5 -5 -4 -3 -2 -1 ------- Run | Scr Mat Min Exi Min Mat Fac Was Fac Low Low Dat Pro Fac Was Fac Low Low Zio Dee Pro Fac Was Fac Ext Cet Arc Hub Gar Fac Res Res Acc Traps Triggered 93 | . . . . . 5 5 . 1 . . . . 5 . 9 . . . . . 12 . . 7 . . 6 9 11 14 4 5 Indirectly 7 | . . . . . . . . . . . . . 1 . . . . . . . . . . . . . 1 . 5 . . . Trap Hack Attempts . | . . . . . . . . . . . . . . . . . . . . . . . . . . . . . . . . . Triggered . | . . . . . . . . . . . . . . . . . . . . . . . . . . . . . . . . . Disarmed . | . . . . . . . . . . . . . . . . . . . . . . . . . . . . . . . . . Reprogrammed . | . . . . . . . . . . . . . . . . . . . . . . . . . . . . . . . . . Reused . | . . . . . . . . . . . . . . . . . . . . . . . . . . . . . . . . . Traps Extracted . | . . . . . . . . . . . . . . . . . . . . . . . . . . . . . . . . . Installed . | . . . . . . . . . . . . . . . . . . . . . . . . . . . . . . . . . Triggered 2 | . . . . . . . . . . . . . . . 1 . . . . . . . . . . . . . 1 . . . Exploded 1 | . . . 1 . . . . . . . . . . . . . . . . . . . . . . . . . . . . . Machines | -11 -10 -10 -10 -9 -8 -7 -7 -7 -7 -7 -7 -6 -6 -6 -6 -6 -6 -6 -6 -5 -5 -5 -5 -5 -5 -5 -5 -5 -4 -3 -2 -1 ---------- Run | Scr Mat Min Exi Min Mat Fac Was Fac Low Low Dat Pro Fac Was Fac Low Low Zio Dee Pro Fac Was Fac Ext Cet Arc Hub Gar Fac Res Res Acc Machines Disabled 54 | . . . . . 1 . . . . . . . 2 . 3 . . . 1 . 1 . . 6 3 . 24 1 9 1 1 1 Max in Single Turn 15 | . . . . . 1 . . . . . . . 1 . 1 . . . 1 . 1 . . 1 1 . 15 1 2 1 1 1 Garrison Access 4 | . . . . . . . . 1 . . . . . . . . . . . . . . . . . . . . 1 1 1 . Network Hub 2 | . . . . . . . . . . . . . . . . . . . . . . . . . . . 2 . . . . . Machines Sabotaged . | . . . . . . . . . . . . . . . . . . . . . . . . . . . . . . . . . Garrisons Compromised . | . . . . . . . . . . . . . . . . . . . . . . . . . . . . . . . . . Overloaded Fab Kills . | . . . . . . . . . . . . . . . . . . . . . . . . . . . . . . . . . Fab Network Shutdowns 1 | . . . . . . . . . . . . . . . 1 . . . . . . . . . . . . . . . . . Hacking | -11 -10 -10 -10 -9 -8 -7 -7 -7 -7 -7 -7 -6 -6 -6 -6 -6 -6 -6 -6 -5 -5 -5 -5 -5 -5 -5 -5 -5 -4 -3 -2 -1 --------- Run | Scr Mat Min Exi Min Mat Fac Was Fac Low Low Dat Pro Fac Was Fac Low Low Zio Dee Pro Fac Was Fac Ext Cet Arc Hub Gar Fac Res Res Acc Machines Accessed 79 | . 2 1 1 1 . 3 . 3 . . 4 . 2 . 7 . . . . . 8 . . 10 4 . 8 . 7 8 3 7 Terminals 53 | . 2 1 . . . 2 . 1 . . . . 1 . 6 . . . . . 4 . . 10 4 . 7 . 4 4 2 5 Fabricators 3 | . . . . . . . . 1 . . . . . . 1 . . . . . 1 . . . . . . . . . . . Repair Stations 5 | . . . . . . . . . . . . . 1 . . . . . . . 1 . . . . . . . 1 1 . 1 Recycling Units 3 | . . . . . . . . . . . . . . . . . . . . . . . . . . . . . 1 2 . . Scanalyzers 4 | . . . . . . 1 . . . . . . . . . . . . . . 2 . . . . . . . . . . 1 Garrison Access 5 | . . . . . . . . 1 . . . . . . . . . . . . . . . . . . 1 . 1 1 1 . Total Hacks 323 | . 5 1 1 1 . 7 . 6 . . 27 . 7 . 24 . . . . . 21 . . 48 18 . 25 . 52 26 13 41 Successful 155 | . . 1 1 1 . 4 . 1 . . 27 . 4 . 14 . . . . . 9 . . 19 6 . 15 . 28 10 3 12 Failed 166 | . 5 . . . . 3 . 5 . . . . 3 . 10 . . . . . 12 . . 28 12 . 10 . 23 16 10 29 Catastrophic 51 | . 2 . . . . 2 . . . . . . 1 . 6 . . . . . 4 . . 8 3 . 1 . 6 3 4 11 Database Lockouts 3 | . . . . . . . . . . . . . . . . . . . . . . . . 1 . . . . 2 . . . Manual 179 | . 5 1 1 . . 2 . 2 . . . . 3 . 10 . . 6 . . 11 . . 39 19 . 9 . 34 9 2 26 Terminals 240 | . 5 1 . . . 6 . 2 . . . . 6 . 15 . . . . . 14 . . 48 18 . 24 . 40 14 12 35 Fabricators 12 | . . . . . . . . 2 . . . . . . 9 . . . . . 1 . . . . . . . . . . . Repair Stations 18 | . . . . . . . . . . . . . 1 . . . . . . . 2 . . . . . . . 9 3 . 3 Recycling Units 10 | . . . . . . . . . . . . . . . . . . . . . . . . . . . . . 2 8 . . Scanalyzers 8 | . . . . . . 1 . . . . . . . . . . . . . . 4 . . . . . . . . . . 3 Garrison Access 6 | . . . . . . . . 2 . . . . . . . . . . . . . . . . . . 1 . 1 1 1 . Terminal Hacks 100 | . . . 1 1 . 3 . . . . 27 . 2 . 4 . . . . . 3 . . 15 5 . 10 . 15 5 1 8 Record 12 | . . . . . . . . . . . 11 . 1 . . . . . . . . . . . . . . . . . . . Part Schematic 19 | . . . . . . 1 . . . . 7 . . . 1 . . . . . 1 . . 6 1 . . . 2 . . . Robot Schematic 6 | . . . . . . . . . . . 6 . . . . . . . . . . . . . . . . . . . . . Prototype ID Bank 8 | . . . . . . . . . . . 3 . . . 1 . . . . . . . . 2 . . 1 . 1 . . . Open Door 5 | . . . . 1 . . . . . . . . . . . . . . . . . . . 1 . . . . . 1 . 2 Level Access Points 3 | . . . . . . . . . . . . . . . . . . . . . . . . . . . . . 1 . 1 1 Branch Access Points 4 | . . . . . . 1 . . . . . . . . 1 . . . . . . . . . . . . . 1 . . 1 Emergency Access Points 1 | . . . . . . . . . . . . . . . . . . . . . . . . . . . 1 . . . . . Machine Index 1 | . . . . . . . . . . . . . . . . . . . . . . . . . . . . . . . . 1 Terminal Index 1 | . . . . . . . . . . . . . . . . . . . . . . . . . . . . . . 1 . . Fabricator Index 3 | . . . . . . 1 . . . . . . . . . . . . . . 1 . . . . . . . 1 . . . Garrison Index 1 | . . . . . . . . . . . . . . . . . . . . . . . . . . . 1 . . . . . Alert Level 4 | . . . . . . . . . . . . . . . . . . . . . . . . 1 . . 3 . . . . . Unreport Threat 20 | . . . . . . . . . . . . . . . 1 . . . . . 1 . . 4 4 . 1 . 6 1 . 2 Recall Investigation 3 | . . . . . . . . . . . . . . . . . . . . . . . . 1 . . . . 1 1 . . Recall Extermination 1 | . . . . . . . . . . . . . . . . . . . . . . . . . . . . . . . . 1 Hauler Manifests 2 | . . . . . . . . . . . . . 1 . . . . . . . . . . . . . 1 . . . . . Registered Prototypes 1 | . . . . . . . . . . . . . . . . . . . . . . . . . . . . . 1 . . . Zone Layout 4 | . . . . . . . . . . . . . . . . . . . . . . . . . . . 2 . 1 1 . . EX-Prototype ID Bank 1 | . . . 1 . . . . . . . . . . . . . . . . . . . . . . . . . . . . . Fabricator Hacks 8 | . . . . . . . . . . . . . . . 7 . . . . . 1 . . . . . . . . . . . Load Schematic 3 | . . . . . . . . . . . . . . . 3 . . . . . . . . . . . . . . . . . Build 5 | . . . . . . . . . . . . . . . 4 . . . . . 1 . . . . . . . . . . . Repair Station Hacks 10 | . . . . . . . . . . . . . . . . . . . . . 2 . . . . . . . 6 . . 2 Scan Component 5 | . . . . . . . . . . . . . . . . . . . . . 1 . . . . . . . 3 . . 1 Repair 5 | . . . . . . . . . . . . . . . . . . . . . 1 . . . . . . . 3 . . 1 Recycling Unit Hacks 1 | . . . . . . . . . . . . . . . . . . . . . . . . . . . . . . 1 . . Retrieve Components 1 | . . . . . . . . . . . . . . . . . . . . . . . . . . . . . . 1 . . Scanalyzer 4 | . . . . . . 1 . . . . . . . . . . . . . . 3 . . . . . . . . . . . Insert Component 4 | . . . . . . 1 . . . . . . . . . . . . . . 3 . . . . . . . . . . . Garrison Access Hacks 4 | . . . . . . . . . . . . . . . . . . . . . . . . . . . 1 . 1 1 1 . Unlock Access 1 | . . . . . . . . . . . . . . . . . . . . . . . . . . . 1 . . . . . Seal Access 3 | . . . . . . . . . . . . . . . . . . . . . . . . . . . . . 1 1 1 . Unauthorized Hacks 72 | . . 2 . . . 1 . 3 . . . . 4 . 6 . . . . . 4 . . 11 3 . 9 . 14 7 3 5 Terminals 26 | . . 1 . . . . . . . . . . 2 . 2 . . . . . . . . 4 1 . 4 . 6 3 1 2 Track 1 | . . . . . . . . . . . . . . . . . . . . . . . . . . . . . 1 . . . Assimilate 1 | . . . . . . . . . . . . . . . . . . . . . . . . . . . . . 1 . . . Botnet 17 | . . 1 . . . . . . . . . . 1 . 2 . . . . . . . . 2 1 . 3 . 2 2 1 2 Disrupt 5 | . . . . . . . . . . . . . . . . . . . . . . . . 2 . . 1 . 1 1 . . Operators 2 | . . . . . . . . . . . . . 1 . . . . . . . . . . . . . . . 1 . . . Fabricators 1 | . . . . . . . . . . . . . . . 1 . . . . . . . . . . . . . . . . . Siphon 1 | . . . . . . . . . . . . . . . 1 . . . . . . . . . . . . . . . . . Repair Stations . | . . . . . . . . . . . . . . . . . . . . . . . . . . . . . . . . . Recycling Units . | . . . . . . . . . . . . . . . . . . . . . . . . . . . . . . . . . Scanalyzers . | . . . . . . . . . . . . . . . . . . . . . . . . . . . . . . . . . Garrison Access 1 | . . . . . . . . 1 . . . . . . . . . . . . . . . . . . . . . . . . Jam 1 | . . . . . . . . 1 . . . . . . . . . . . . . . . . . . . . . . . . Data Cores Recovered . | . . . . . . . . . . . . . . . . . . . . . . . . . . . . . . . . . Used . | . . . . . . . . . . . . . . . . . . . . . . . . . . . . . . . . . Hacking Detections 63 | . 2 . . . . 2 . 3 . . . . 2 . 7 . . . . . 8 . . 9 4 . 6 . 6 6 1 7 Full Trace Events 4 | . . . . . . 1 . . . . . . . . 2 . . . . . 1 . . . . . . . . . . . Feedback Events . | . . . . . . . . . . . . . . . . . . . . . . . . . . . . . . . . . Feedback Blocked . | . . . . . . . . . . . . . . . . . . . . . . . . . . . . . . . . . Robot Schematics Acquired 6 | . . . . . . . . . . . 6 . . . . . . . . . . . . . . . . . . . . . Robots Built . | . . . . . . . . . . . . . . . . . . . . . . . . . . . . . . . . . Matter . | . . . . . . . . . . . . . . . . . . . . . . . . . . . . . . . . . Time . | . . . . . . . . . . . . . . . . . . . . . . . . . . . . . . . . . Total Robot Build Rating . | . . . . . . . . . . . . . . . . . . . . . . . . . . . . . . . . . Part Schematics Acquired 18 | . . . . . . 1 . . . . 7 . . . 1 . . . . . 1 . . 5 1 . . . 2 . . . Parts Built 8 | . . . . . . . . . . . . . . . 6 . . . . . 2 . . . . . . . . . . . Matter 889 | . . . . . . . . . . . . . . . 611 . . . . . 278 . . . . . . . . . . . Time 497 | . . . . . . . . . . . . . . . 428 . . . . . 69 . . . . . . . . . . . Total Part Build Rating 36 | . . . . . . . . . . . . . . . 18 . . . . . 18 . . . . . . . . . . . Parts Repaired 5 | . . . . . . . . . . . . . . . . . . . . . 1 . . . . . . . 3 . . 1 Time 226 | . . . . . . . . . . . . . . . . . . . . . 56 . . . . . . . 136 . . 34 Parts Recycled . | . . . . . . . . . . . . . . . . . . . . . . . . . . . . . . . . . Recycled Matter . | . . . . . . . . . . . . . . . . . . . . . . . . . . . . . . . . . Retrieved Matter . | . . . . . . . . . . . . . . . . . . . . . . . . . . . . . . . . . Retrieved Components 3 | . . . . . . . . . . . . . . . . . . . . . . . . . . . . . . 3 . . Parts Scanalyzed . | . . . . . . . . . . . . . . . . . . . . . . . . . . . . . . . . . Part Schematics Acquired . | . . . . . . . . . . . . . . . . . . . . . . . . . . . . . . . . . Parts Damaged . | . . . . . . . . . . . . . . . . . . . . . . . . . . . . . . . . . Bothacking | -11 -10 -10 -10 -9 -8 -7 -7 -7 -7 -7 -7 -6 -6 -6 -6 -6 -6 -6 -6 -5 -5 -5 -5 -5 -5 -5 -5 -5 -4 -3 -2 -1 ------------ Run | Scr Mat Min Exi Min Mat Fac Was Fac Low Low Dat Pro Fac Was Fac Low Low Zio Dee Pro Fac Was Fac Ext Cet Arc Hub Gar Fac Res Res Acc Used RIF Installer 1 | . . . . . . . . . . . . . . . . . . . . . . . . . . . . 1 . . . . Robots Hacked 2 | . . . . . . . . . . . . . . . . . . . 1 . . . . 1 . . . . . . . . Non-combat 1 | . . . . . . . . . . . . . . . . . . . 1 . . . . . . . . . . . . . Combat 1 | . . . . . . . . . . . . . . . . . . . . . . . . 1 . . . . . . . . Robot Hacks Applied 2 | . . . . . . . . . . . . . . . . . . . 1 . . . . 1 . . . . . . . . parse_system 2 | . . . . . . . . . . . . . . . . . . . 1 . . . . 1 . . . . . . . . Relay Couplers Released 3 | . . . . . . . . . . . . . . . . . . . . . . . . . . . . . . . . 3 Programmers 3 | . . . . . . . . . . . . . . . . . . . . . . . . . . . . . . . . 3 Attached 2 | . . . . . . . . . . . . . . . . . . . . . . . . . . . . . 2 . . . Robots Rewired 21 | . . . . . . . . . . . . 2 . . . 2 2 . . . . . . 15 . . . . . . . . Allies Hacked 1 | . . . . . . . . . . . . . . . . . . . . . 1 . . . . . . . . . . . Hacks Repelled . | . . . . . . . . . . . . . . . . . . . . . . . . . . . . . . . . . Allies | -11 -10 -10 -10 -9 -8 -7 -7 -7 -7 -7 -7 -6 -6 -6 -6 -6 -6 -6 -6 -5 -5 -5 -5 -5 -5 -5 -5 -5 -4 -3 -2 -1 -------- Run | Scr Mat Min Exi Min Mat Fac Was Fac Low Low Dat Pro Fac Was Fac Low Low Zio Dee Pro Fac Was Fac Ext Cet Arc Hub Gar Fac Res Res Acc Total Allies 70 | . . . . 2 . . 19 . . . 1 2 . 1 . 2 2 5 1 . 3 1 . 20 5 . . . 3 . . 3 Largest Group 19 | . . . . 2 2 . 19 19 16 16 13 13 1 1 . 2 2 7 7 . 3 1 . 18 15 11 9 . 1 . . 3 Highest-Rated Group 892 | . . . . 45 45 . 477 477 418 418 383 383 32 31 . 61 62 318 318 . 93 129 . 619 892 668 606 . 64 . . 138 Highest-Rated Ally 156 | . . . . 31 31 . 35 35 35 35 59 59 32 31 . 32 32 94 94 . 31 129 . 156 140 94 94 . 64 . . 46 Total Orders 14 | . . . . . . . . . . . . . . . . . 3 . . . . 3 1 . . . 2 . 3 1 . 1 STAY 3 | . . . . . . . . . . . . . . . . . . . . . . . . . . . 1 . 2 . . . GOTO 4 | . . . . . . . . . . . . . . . . . 2 . . . . 2 . . . . . . . . . . FOLLOW 3 | . . . . . . . . . . . . . . . . . 1 . . . . 1 . . . . . . 1 . . . EXPLORE 4 | . . . . . . . . . . . . . . . . . . . . . . . 1 . . . 1 . . 1 . 1 Ally Attacks 534 | . . . . . 14 . . 23 . 62 . 34 . 16 . . 20 . 74 . 1 14 . 86 104 41 37 . 3 . . 5 Total Damage 13051 | . . . . . 166 . . 383 . 1411 . 1283 . 250 . . 485 . 1706 . 25 640 . 2131 2352 1173 743 . 173 . . 130 Kills 94 | . . . . . 2 . . 4 . 8 . 9 . . . . 3 . 16 . . 1 . 21 17 4 7 . 1 . . 1 Allies Corrupted 3 | . . . . . . . . . . . . . . . . . . . . . 1 . 1 . . . . . 1 . . . Allies Melted . | . . . . . . . . . . . . . . . . . . . . . . . . . . . . . . . . . Field Lobotomies 5 | . . . . . . . . . . . 1 . . . . . . . 1 . . 1 . . . . . . 2 . . . Intel | -11 -10 -10 -10 -9 -8 -7 -7 -7 -7 -7 -7 -6 -6 -6 -6 -6 -6 -6 -6 -5 -5 -5 -5 -5 -5 -5 -5 -5 -4 -3 -2 -1 ------- Run | Scr Mat Min Exi Min Mat Fac Was Fac Low Low Dat Pro Fac Was Fac Low Low Zio Dee Pro Fac Was Fac Ext Cet Arc Hub Gar Fac Res Res Acc Robot Analysis Total . | . . . . . . . . . . . . . . . . . . . . . . . . . . . . . . . . . Derelict Logs Recovered 8 | . . . . 1 . . . . 2 1 . . . . . 2 1 1 . . . . . . . . . . . . . . Drone Launches 28 | . . . . . . . . . . . . . . . . 2 . . . . . . 14 . . . 2 . . 2 . 8 Drone Recoveries . | . . . . . . . . . . . . . . . . . . . . . . . . . . . . . . . . . Exploration | -11 -10 -10 -10 -9 -8 -7 -7 -7 -7 -7 -7 -6 -6 -6 -6 -6 -6 -6 -6 -5 -5 -5 -5 -5 -5 -5 -5 -5 -4 -3 -2 -1 ------------- Run | Scr Mat Min Exi Min Mat Fac Was Fac Low Low Dat Pro Fac Was Fac Low Low Zio Dee Pro Fac Was Fac Ext Cet Arc Hub Gar Fac Res Res Acc Turns Passed 30039 | 53 135 153 230 394 520 800 920 166 799 715 195 840 421 299 1501 656 698 1887 2047 1075 1758 306 2028 1102 447 95 1613 797 2101 2219 1153 1916 Spaces Moved 12765 | 52 132 106 234 258 193 465 544 105 427 380 92 356 198 182 584 272 292 928 982 284 671 116 150 375 188 39 443 267 724 1330 427 969 Core 317 | 3 . . . . . . . . . . . . . . . . . . . . . . . . . . . . 64 217 . 33 Treads 6503 | . . . . . 161 132 . . 369 380 92 356 5 . . 260 292 928 338 . 463 116 150 375 188 39 443 267 394 75 427 253 Legs 372 | . . . . . . . . . . . . . . . . . . . . 164 208 . . . . . . . . . . . Wheels 3948 | 49 132 106 234 258 32 333 544 105 58 . . . 193 182 584 12 . . 644 120 . . . . . . . . 266 96 . . Hover 1249 | . . . . . . . . . . . . . . . . . . . . . . . . . . . . . . 566 . 683 Flight 376 | . . . . . . . . . . . . . . . . . . . . . . . . . . . . . . 376 . . Fastest Speed 40 | 50 80 80 90 120 150 140 130 140 140 180 200 180 150 150 150 150 200 200 150 160 190 190 220 220 220 220 220 220 50 40 156 50 Average Speed 164 | 78 80 87 94 142 190 157 138 140 174 183 200 198 151 150 151 197 200 200 173 181 216 219 220 220 220 220 231 222 176 105 157 89 Slowest Speed 280 | 80 80 90 120 150 220 200 140 140 180 200 200 200 200 150 160 200 200 200 200 210 220 220 220 220 220 220 250 250 220 280 210 250 Overloaded Moves . | . . . . . . . . . . . . . . . . . . . . . . . . . . . . . . . . . Propulsion Burnouts . | . . . . . . . . . . . . . . . . . . . . . . . . . . . . . . . . . Robots Hopped . | . . . . . . . . . . . . . . . . . . . . . . . . . . . . . . . . . Cave-ins Triggered . | . . . . . . . . . . . . . . . . . . . . . . . . . . . . . . . . . Exploration Rate (%) 46 | 3 38 21 61 57 24 14 95 3 66 53 75 62 6 75 18 44 62 86 78 45 23 94 16 62 76 61 63 61 16 32 12 16 Regions Visited 32 Branch Regions 16 Pre-discovered Areas 3 | . . . . . . . . . . . 1 . . . . . . 2 . . . . . . . . . . . . . . Known Exits Taken 7 | . . . . . . . . 1 . . . . . . 1 . 1 . . 1 . . . . . . 1 . 1 . 1 . Unknown Exits Taken 18 | 1 1 1 1 1 1 . . . 1 1 1 1 . . . 1 . 1 1 . . . 1 1 1 1 . . . 1 . . Scrap Searched 23 | . . 1 . 2 . . . . 7 . . 3 . . . 3 2 4 . 1 . . . . . . . . . . . . Spaces Dug 285 | . . . . . 1 3 4 . . . . 42 14 . 13 14 . . 25 . 43 . . 50 . . 8 . 9 5 27 27 Terrain Destroyed 1558 | . . . . . 47 3 149 . . . . 145 31 92 108 41 . . 82 121 50 2 5 135 . . 351 2 60 21 40 73 Melee 95 | . . . . . 1 3 4 . . . . . 14 . 13 . . . . . . . . 3 . . . . . 5 25 27 Projectile 141 | . . . . . . . . . . . . . . . . . . . . 5 30 2 5 9 . . 24 2 26 10 15 13 AOE 1322 | . . . . . 46 . 145 . . . . 145 17 92 95 41 . . 82 116 20 . . 123 . . 327 . 34 6 . 33 Actions | -11 -10 -10 -10 -9 -8 -7 -7 -7 -7 -7 -7 -6 -6 -6 -6 -6 -6 -6 -6 -5 -5 -5 -5 -5 -5 -5 -5 -5 -4 -3 -2 -1 --------- Run | Scr Mat Min Exi Min Mat Fac Was Fac Low Low Dat Pro Fac Was Fac Low Low Zio Dee Pro Fac Was Fac Ext Cet Arc Hub Gar Fac Res Res Acc Total 19855 | 61 147 128 242 285 279 535 643 124 483 397 101 428 286 190 1106 350 368 966 1192 805 927 155 1796 594 220 48 859 402 1367 1912 756 1703 Wait 4437 | . . 2 5 18 12 20 26 17 48 16 7 5 40 . 400 11 38 12 14 452 154 1 1600 35 24 9 257 70 388 225 179 352 Move 12737 | 51 131 105 233 257 192 465 543 104 426 379 91 355 198 181 583 271 291 927 981 283 671 115 149 374 187 38 443 266 723 1329 426 969 Hop . | . . . . . . . . . . . . . . . . . . . . . . . . . . . . . . . . . Pick Up 308 | 4 4 . 3 8 17 9 7 1 4 . . 9 5 . 19 4 2 10 24 7 16 13 2 5 2 . 6 . 29 45 18 35 Fast Attach 125 | 6 2 . . . 1 4 2 . . 1 . 1 2 . 5 . 1 1 2 . 1 2 . 1 . . 2 . 16 44 12 19 Attach 162 | . . 2 . . 5 3 3 . 1 . . 5 3 . 1 4 2 3 17 6 1 1 . 1 . . 5 3 19 28 4 45 Detach 95 | . . . . . . 2 1 . . . . . 2 . . 1 . 2 10 9 4 1 1 2 1 . 5 1 12 18 . 23 Swap 214 | . . . 1 1 4 1 5 1 . . 2 10 2 2 17 8 2 . 20 2 11 5 13 11 3 1 5 1 14 30 19 23 Drop 190 | . 3 . . 1 . 12 7 1 4 1 . . 1 . 6 2 . 11 26 12 13 1 . 8 1 . 4 1 1 23 26 25 Fire 1128 | . 7 19 . . 47 1 45 . . . 1 37 9 7 29 23 25 . 49 23 52 16 24 47 2 . 127 42 153 151 39 153 Melee 224 | . . . . . 1 18 4 . . . . 3 16 . 30 . . . 48 11 . . . 3 . . . . . 16 31 43 Ram 11 | . . . . . . . . . . . . . . . . . . . . . . . . . . . . . 2 . . 9 Kick . | . . . . . . . . . . . . . . . . . . . . . . . . . . . . . . . . . Crush 3 | . . . . . . . . . . . . . . . . . . . . . . . . . . . . . 2 . . 1 Escape Stasis 78 | . . . . . . . . . . . . . 8 . 16 . . . . . 4 . . 13 . . 4 18 8 3 2 2 Rewire 130 | . . . . . . . . . . . . 3 . . . 25 7 . 1 . . . . 94 . . . . . . . . Trap . | . . . . . . . . . . . . . . . . . . . . . . . . . . . . . . . . . Miscellaneous 13 | . . . . . . . . . . . . . . . . 1 . . . . . . 7 . . . 1 . . . . 4 Route ------- -11/Scrapyard -10/Materials (discovered 2 exits: [*Mat] / *Min) -10/Mines (discovered 2 exits: [*Mat] / *Exi) -10/Exiles (discovered 2 exits: *Min x2) -9/Mines -8/Materials -7/Factory (discovered 4 exits: Sto x2 / Low x2) -7/Waste -7/Factory -7/Lower Caves -7/Lower Caves -7/Data Miner -6/Proximity Caves -6/Factory (discovered 2 exits: Fac / Low) -6/Waste -6/Factory (discovered 2 exits: *Low x2) -6/Lower Caves -6/Lower Caves (discovered 2 exits: *Fac / *Zio) -6/Zion (discovered 2 exits: [*Dee] / [*Pro]) -6/Deep Caves -5/Proximity Caves -5/Factory (discovered 2 exits: [*Upp] / *Ext) -5/Waste -5/Factory -5/Extension (discovered 2 exits: *Fac / *Cet) -5/Cetus (discovered 2 exits: *Fac / [*Arc]) -5/Archives -5/Hub_04(d) (discovered 4 exits: *Fac x3 / Gar) -5/Garrison (discovered 3 exits: *Fac x3) -4/Factory (discovered 7 exits: *Res x4 / *Upp x2 / *Arm) -3/Research (discovered 2 exits: *Res / [*Qua]) -2/Research (discovered 3 exits: *Acc x3) -1/Access (discovered 2 exits: Sur / Com) History --------- Turn | Location | Event 12 | -11/Scrapyard | Discovered new exit (range 15) 54 | -11/Scrapyard | Entered Materials 136 | -10/Materials | Discovered new exit (range 14) 181 | -10/Materials | Discovered new exit (range 7) 189 | -10/Materials | Entered Mines 252 | -10/Mines | Discovered new exit (range 8) 304 | -10/Mines | Build established: Mutant 338 | -10/Mines | Deemed a non-threat by the Exiles lab entrance 339 | -10/Mines | Discovered new exit (range 5) 342 | -10/Mines | Entered Exiles 356 | -10/Exiles | Discovered new exit (range 15) 367 | -10/Exiles | Met 8R-AWN 379 | -10/Exiles | Met EX-HEX 405 | -10/Exiles | Met EX-BIN 417 | -10/Exiles | Aligned with FarCom system 418 | -10/Exiles | Given EX-Vault access code 440 | -10/Exiles | Opened EX-Vault 445 | -10/Exiles | Found Field Lobotomy Kit 463 | -10/Exiles | Warned to stay clear of 0b10 Research branches 478 | -10/Exiles | Exiles lab attacked by MAIN.C 554 | -10/Exiles | Discovered new exit (range 11) 572 | -10/Exiles | Left Exiles lab with Field Lobotomy Kit 572 | -10/Exiles | Entered Mines 595 | -9/Mines | Learned Materials security intel 630 | -9/Mines | Met a Derelict shopkeep closing up shop 721 | -9/Mines | Received a Rocket Launcher from a helpful Derelict 949 | -9/Mines | Discovered new exit (range 4) 966 | -9/Mines | Entered Materials 966 | -8/Materials | Accompanied by 2 allies 966 | -8/Materials | Evolved 4 slots: Utility x4 971 | -8/Materials | Led the pair of lost Derelicts to an unsafe place 973 | -8/Materials | Build established: Hauler-Mutant 1482 | -8/Materials | Discovered new exit (range 3) 1486 | -8/Materials | Entered Factory 1486 | -7/Factory | Evolved 2 slots: Utility x2 1937 | -7/Factory | Identified exit to Storage 1937 | -7/Factory | Identified exit to Lower Caves 2286 | -7/Factory | Sucked down chute 2286 | -7/Factory | Entered Waste 2292 | -7/Waste | Spotted C-40 Crusher 2320 | -7/Waste | Spotted C-40 Crusher 2333 | -7/Waste | Destroyed C-40 Crusher 2424 | -7/Waste | Spotted C-40 Crusher 2513 | -7/Waste | Destroyed C-40 Crusher 2516 | -7/Waste | Destroyed C-40 Crusher 2519 | -7/Waste | Spotted C-40 Crusher 2547 | -7/Waste | Spotted C-40 Crusher 2558 | -7/Waste | Destroyed C-40 Crusher 2593 | -7/Waste | Crushed by Compactor (1 part destroyed, 1 dropped) 2599 | -7/Waste | Destroyed C-40 Crusher 2627 | -7/Waste | Spotted C-40 Crusher 2733 | -7/Waste | Destroyed C-40 Crusher 2750 | -7/Waste | Found Damper Plating 2786 | -7/Waste | Discovered new exit (range 15) 3043 | -7/Waste | Warlord forces began an assault 3206 | -7/Waste | Entered Factory 3206 | -7/Factory | Accompanied by 19 allies 3345 | -7/Factory | Discovered exit to Lower Caves (range 4) 3372 | -7/Factory | Entered Lower Caves 3372 | -7/Lower Caves | Accompanied by 16 allies 3389 | -7/Lower Caves | Learned Factory security intel 3435 | -7/Lower Caves | Learned location of 2 exits from Factory 4118 | -7/Lower Caves | Discovered new exit (range 6) 4125 | -7/Lower Caves | Encountered a Warlord checkpoint 4171 | -7/Lower Caves | Entered another Lower Caves area 4171 | -7/Lower Caves | Accompanied by 16 allies 4620 | -7/Lower Caves | Learned Factory stockpile data 4859 | -7/Lower Caves | Discovered new exit (range 10) 4886 | -7/Lower Caves | Entered Data Miner 4886 | -7/Data Miner | Accompanied by 12 allies 4886 | -7/Data Miner | Discovered new exit (range 6) 4924 | -7/Data Miner | Met Data Miner 4962 | -7/Data Miner | Learned location of Section 7 (-3) 4962 | -7/Data Miner | Acquired the access code to Warlord's prototype stash 4998 | -7/Data Miner | Received God Mode back door access code from Data Miner 5017 | -7/Data Miner | Assimilated Data Miner with FLK Orb 5081 | -7/Data Miner | Entered Proximity Caves 5081 | -6/Proximity Caves | Accompanied by 13 allies 5099 | -6/Proximity Caves | Destroyed Data Miner 5103 | -6/Proximity Caves | Found Prototype Hackware 5106 | -6/Proximity Caves | Found Prototype Hackware 5111 | -6/Proximity Caves | Found Prototype Hackware 5134 | -6/Proximity Caves | Spotted B-75 Beast 5178 | -6/Proximity Caves | Destroyed B-75 Beast 5373 | -6/Proximity Caves | Attracted the attention of an 0b10 outpost 5470 | -6/Proximity Caves | Destroyed 13 combat bots 5475 | -6/Proximity Caves | Lost 4 parts (1p3u) 5883 | -6/Proximity Caves | Discovered new exit (range 11) 5921 | -6/Proximity Caves | Entered Factory 5921 | -6/Factory | Accompanied by 1 ally 5921 | -6/Factory | Evolved 2 slots: Utility x2 5922 | -6/Factory | Identified exit to Factory 5922 | -6/Factory | Identified exit to Lower Caves 6342 | -6/Factory | Sucked down chute 6342 | -6/Factory | Entered Waste 6343 | -6/Waste | Met a frightened Derelict 6350 | -6/Waste | Spotted C-40 Crusher 6362 | -6/Waste | Destroyed C-40 Crusher 6367 | -6/Waste | Spotted C-40 Crusher 6441 | -6/Waste | Spotted C-40 Crusher 6469 | -6/Waste | Spotted C-40 Crusher 6569 | -6/Waste | Spotted C-40 Crusher 6581 | -6/Waste | Spotted C-40 Crusher 6624 | -6/Waste | Discovered new exit (range 12) 6641 | -6/Waste | Entered Factory 7460 | -6/Factory | Fabricated Imp. Utility Shielding (x2) 7520 | -6/Factory | Fabricated Structural Scanner? 7712 | -6/Factory | Fabricated Lgt. Regenerative Plating (x1) 7869 | -6/Factory | Fabricated Lgt. Regenerative Plating (x1) 8062 | -6/Factory | Local fabrication network quarantined 8142 | -6/Factory | Entered Lower Caves 8157 | -6/Lower Caves | Learned Factory garrison access intel 8159 | -6/Lower Caves | Attracted the attention of an 0b10 checkpoint 8265 | -6/Lower Caves | Attracted the attention of an 0b10 outpost 8349 | -6/Lower Caves | Destroyed 9 combat bots 8713 | -6/Lower Caves | Discovered new exit (range 18) 8769 | -6/Lower Caves | Learned Factory stockpile data 8798 | -6/Lower Caves | Entered another Lower Caves area 8798 | -6/Lower Caves | Accompanied by 4 allies 8805 | -6/Lower Caves | Discovered exit to Factory (range 7) 8890 | -6/Lower Caves | Attacked by a faux Warlord 8937 | -6/Lower Caves | Lost 3 parts (1p2w) 9340 | -6/Lower Caves | Encountered a Warlord checkpoint 9467 | -6/Lower Caves | Identified exit to Zion 9496 | -6/Lower Caves | Entered Zion 9496 | -6/Zion | Accompanied by 3 allies 9566 | -6/Zion | System corruption cleaned by Quarantine Array 9638 | -6/Zion | Acquired unknown access codes intercepted by a Zionite 9704 | -6/Zion | Given A8's code to call for help 9714 | -6/Zion | Discovered new exit (range 16) 9828 | -6/Zion | Received a visual enhancement algorithm 10176 | -6/Zion | Found Prototype Launcher 10603 | -6/Zion | Learned location of Warlord (-4) 11119 | -6/Zion | Found Relay Coupler [Programmer] 11122 | -6/Zion | Found Relay Coupler [Programmer] 11125 | -6/Zion | Found Relay Coupler [Programmer] 11133 | -6/Zion | Found Relay Coupler [Programmer] 11136 | -6/Zion | Found Relay Coupler [Programmer] 11263 | -6/Zion | Gained Derelict followers 11329 | -6/Zion | Opened final containment barrier to the Deep Caves 11339 | -6/Zion | Enhanced Grunt warped into view, answering call for help 11345 | -6/Zion | Enhanced Grunt warped into view, answering call for help 11368 | -6/Zion | Discovered new exit (range 5) 11371 | -6/Zion | Saw the warning signs outside the Deep Caves entrance 11383 | -6/Zion | Entered Deep Caves 11383 | -6/Deep Caves | Accompanied by 8 allies 11812 | -6/Deep Caves | Attacked by Z-Imprinter 11829 | -6/Deep Caves | Allies destroyed Z-Imprinter 11863 | -6/Deep Caves | Z-Facility disabled 12143 | -6/Deep Caves | Found Prototype Protection 12146 | -6/Deep Caves | Found Prototype Protection 12147 | -6/Deep Caves | Identified Zio. Weapon Casing 12152 | -6/Deep Caves | Found Prototype Protection 12166 | -6/Deep Caves | Identified Zio. Heavy Carapace 12168 | -6/Deep Caves | Identified Gui. Missile Launcher 12182 | -6/Deep Caves | Found Zio. Heavy Carapace 12655 | -6/Deep Caves | Discovered new exit (range 6) 12876 | -6/Deep Caves | Spotted as-63572 12897 | -6/Deep Caves | Destroyed as-63572 12930 | -6/Deep Caves | Triggered Deep Caves wall 12943 | -6/Deep Caves | Core integrity fell below 50% 12965 | -6/Deep Caves | Spotted AS-11926 12971 | -6/Deep Caves | Assimilated AS-11926 with FLK Orb 12977 | -6/Deep Caves | Spotted AS-50962 12987 | -6/Deep Caves | Destroyed 32 combat bots 12990 | -6/Deep Caves | Spotted as-30863 12998 | -6/Deep Caves | Exposed GOLEM chamber 13002 | -6/Deep Caves | Destroyed as-30863 13013 | -6/Deep Caves | Triggered Deep Caves wall 13026 | -6/Deep Caves | Destroyed AS-50962 13032 | -6/Deep Caves | Found Mobile Assembly Unit 13036 | -6/Deep Caves | Found PSU Rigger 13178 | -6/Deep Caves | Destroyed 10 combat bots 13240 | -6/Deep Caves | Found GOLEM Unit 13245 | -6/Deep Caves | Found GOLEM Unit 13250 | -6/Deep Caves | Found GOLEM Unit 13255 | -6/Deep Caves | Found GOLEM Unit 13430 | -6/Deep Caves | Entered Proximity Caves 13949 | -5/Proximity Caves | Build established: Hauler-Golem 14244 | -5/Proximity Caves | Core integrity fell below 20% 14505 | -5/Proximity Caves | Entered Factory 14505 | -5/Factory | Evolved 2 slots: Power x1, Utility x1 14507 | -5/Factory | Loaded intel: 4 garrison access locations 14726 | -5/Factory | Allied Derelicts emerged from ambush trap array 14874 | -5/Factory | Repaired System Restoration Module 14998 | -5/Factory | Fabricated Adv. Heavy Siege Treads (x2) 15190 | -5/Factory | Identified System Mapper 15190 | -5/Factory | Identified Ghost Barrier 15286 | -5/Factory | Identified Quantum Router 15315 | -5/Factory | Build established: Hauler-Mutant 15502 | -5/Factory | Discovered new exit (range 15) 16189 | -5/Factory | Discovered new exit (range 15) 16263 | -5/Factory | Sucked down chute 16263 | -5/Factory | Entered Waste 16278 | -5/Waste | EMP discharged 16283 | -5/Waste | Spotted C-40 Crusher 16307 | -5/Waste | Crushed by Compactor (0 parts destroyed, 2 dropped) 16307 | -5/Waste | Assimilated C-40 Crusher with FLK Orb 16378 | -5/Waste | EMP discharged 16378 | -5/Waste | System corruption reached 10% 16399 | -5/Waste | Destroyed C-40 Crusher 16425 | -5/Waste | Spotted C-40 Crusher 16453 | -5/Waste | Spotted C-40 Crusher 16459 | -5/Waste | Destroyed C-40 Crusher 16476 | -5/Waste | Spotted C-40 Crusher 16478 | -5/Waste | EMP discharged 16489 | -5/Waste | Allies destroyed C-40 Crusher 16505 | -5/Waste | Spotted C-40 Crusher 16549 | -5/Waste | Discovered new exit (range 10) 16569 | -5/Waste | Entered Factory 16635 | -5/Factory | Discovered new exit (range 37) 16869 | -5/Factory | Build established: Hauler-Golem 18597 | -5/Factory | Entered Extension 18620 | -5/Extension | Disrupted transfer network 18690 | -5/Extension | Rescued A7 18969 | -5/Extension | Build established: Hauler-Mutant 19001 | -5/Extension | Rescued a captive Derelict 19436 | -5/Extension | Rescued a captive Derelict 19437 | -5/Extension | Central database locked down 19517 | -5/Extension | Rescued a captive Derelict 19518 | -5/Extension | Rescued a captive Derelict 19670 | -5/Extension | Discovered new exit (range 10) 19672 | -5/Extension | Discovered new exit (range 6) 19699 | -5/Extension | Entered Cetus 19699 | -5/Cetus | Accompanied by 14 allies 19704 | -5/Cetus | Acquired a Cetus Manufacturing Module code from A7 19729 | -5/Cetus | Spotted Cetus Guard 19729 | -5/Cetus | Spotted Cetus Guard 19731 | -5/Cetus | Spotted Cetus Guard 19732 | -5/Cetus | Spotted Cetus Guard 19736 | -5/Cetus | Allies destroyed Cetus Guard 19742 | -5/Cetus | Allies destroyed Cetus Guard 19743 | -5/Cetus | Allies destroyed Cetus Guard 19745 | -5/Cetus | Allies destroyed Cetus Guard 19787 | -5/Cetus | P-70 Sage assimilated allied Z0-E0U(h) 19850 | -5/Cetus | Started Cetus Manufacturing Module 19866 | -5/Cetus | Escorted A7 to Cetus Mainframe 19875 | -5/Cetus | Manufactured an Enhanced Grunt 19900 | -5/Cetus | Manufactured an Enhanced Grunt 19925 | -5/Cetus | Manufactured an Enhanced Grunt 19950 | -5/Cetus | Manufactured an Enhanced Grunt 19975 | -5/Cetus | Manufactured an Enhanced Grunt 19995 | -5/Cetus | Discovered new exit (range 15) 20031 | -5/Cetus | Spotted Cetus Guard 20037 | -5/Cetus | Spotted Cetus Guard 20038 | -5/Cetus | Spotted Cetus Guard 20038 | -5/Cetus | Spotted Cetus Guard 20042 | -5/Cetus | Allies destroyed Cetus Guard 20045 | -5/Cetus | Allies destroyed Cetus Guard 20047 | -5/Cetus | Allies destroyed Cetus Guard 20049 | -5/Cetus | Allies destroyed Cetus Guard 20066 | -5/Cetus | Discovered new exit (range 15) 20077 | -5/Cetus | Met Revision 17 20146 | -5/Cetus | Entered Archives 20146 | -5/Archives | Accompanied by 11 allies 20199 | -5/Archives | Discovered new exit (range 15) 20227 | -5/Archives | Build established: Commander-Golem 20241 | -5/Archives | Entered Hub_04(d) 20241 | -5/Hub_04(d) | Accompanied by 9 allies 20329 | -5/Hub_04(d) | Disrupted transfer network 20459 | -5/Hub_04(d) | Discovered new exit (range 15) 20986 | -5/Hub_04(d) | Discovered new exit (range 13) 21057 | -5/Hub_04(d) | Build established: Commander-Mutant 21062 | -5/Hub_04(d) | Network Hub disabled 21115 | -5/Hub_04(d) | Spotted Lightning 21118 | -5/Hub_04(d) | Destroyed Lightning 21118 | -5/Hub_04(d) | Spotted Lightning 21128 | -5/Hub_04(d) | Destroyed Lightning 21128 | -5/Hub_04(d) | Spotted Lightning 21138 | -5/Hub_04(d) | Destroyed Lightning 21173 | -5/Hub_04(d) | Found Prototype Device 21177 | -5/Hub_04(d) | Found Exp. Targeting Computer 21180 | -5/Hub_04(d) | Found Exp. Targeting Computer 21191 | -5/Hub_04(d) | Identified EM Dispersion Field 21473 | -5/Hub_04(d) | Spotted Lightning 21474 | -5/Hub_04(d) | Discovered new exit (range 9) 21474 | -5/Hub_04(d) | Spotted Lightning 21475 | -5/Hub_04(d) | Spotted Lightning 21476 | -5/Hub_04(d) | Destroyed Lightning 21492 | -5/Hub_04(d) | Destroyed Lightning 21583 | -5/Hub_04(d) | Destroyed Lightning 21594 | -5/Hub_04(d) | Build established: Hauler-Mutant 21601 | -5/Hub_04(d) | Found Prototype Device 21602 | -5/Hub_04(d) | Identified Exp. Phase Shifter 21627 | -5/Hub_04(d) | Network Hub disabled 21854 | -5/Hub_04(d) | Identified exit to Garrison 21854 | -5/Hub_04(d) | Entered Garrison 21953 | -5/Garrison | Triggered checkpoint 22051 | -5/Garrison | Triggered checkpoint 22136 | -5/Garrison | Discovered new exit (range 9) 22334 | -5/Garrison | Discovered new exit (range 14) 22486 | -5/Garrison | Triggered checkpoint 22590 | -5/Garrison | Discovered new exit (range 12) 22642 | -5/Garrison | Installed Relay Interface Framework 22651 | -5/Garrison | Entered Factory 22651 | -4/Factory | Evolved 2 slots: Utility x2 22740 | -4/Factory | Identified exit to Upper Caves 22740 | -4/Factory | Identified exit to Armory 22769 | -4/Factory | Central database locked down 23007 | -4/Factory | Repaired Hyp. Gauss Cannon 23031 | -4/Factory | Build established: Hacker-Mutant 23062 | -4/Factory | Repaired Centrium Medium Armor Plating 23127 | -4/Factory | Repaired Centrium Medium Armor Plating 23528 | -4/Factory | Garrison activated, responded to threat 23856 | -4/Factory | Garrison activated, responded to threat 23940 | -4/Factory | Destroyed 14 combat bots 23982 | -4/Factory | System corruption reached 10% 24009 | -4/Factory | Assimilated Y-72 Warden with FLK Orb 24012 | -4/Factory | Garrison activated, responded to threat 24053 | -4/Factory | Lost 5 parts (1p1n1u2w) 24062 | -4/Factory | Core integrity fell below 50% 24066 | -4/Factory | Released all parts (10) 24069 | -4/Factory | Assimilated Y-72 Warden with FLK Orb 24092 | -4/Factory | Core integrity fell below 20% 24116 | -4/Factory | Lost 3 parts (2u1w) 24366 | -4/Factory | Build established: Scavenger-Mutant 24648 | -4/Factory | Identified exit to Research 24651 | -4/Factory | First assault squad dispatched 24733 | -4/Factory | Released all parts (6) 24752 | -4/Factory | Entered Research 24752 | -3/Research | Evolved 2 slots: Propulsion x2 24782 | -3/Research | Lost 6 parts (1p3n1u1w) 24849 | -3/Research | Found Quantum Capacitor 25028 | -3/Research | Build established: Mutant 25551 | -3/Research | System corruption reached 10% 25601 | -3/Research | Lost 6 parts (2p2n2w) 25666 | -3/Research | Released all parts (3) 25668 | -3/Research | Core integrity fell below 50% 25695 | -3/Research | Lost 7 parts (4n3w) 25814 | -3/Research | Found Antimissile System 26060 | -3/Research | Build established: Scavenger-Mutant 26404 | -3/Research | Found Exp. Terrain Scanner 26573 | -3/Research | Found Adv. Powered Armor 26575 | -3/Research | Found Adv. Powered Armor 26577 | -3/Research | Found Adv. Powered Armor 26686 | -3/Research | Discovered new exit (range 27) 26783 | -3/Research | Core integrity fell below 20% 26957 | -3/Research | Discovered new exit (range 9) 26971 | -3/Research | Entered another Research area 26971 | -2/Research | Evolved 2 slots: Weapon x2 27042 | -2/Research | Spotted B-90 Cyclops 27962 | -2/Research | Discovered new exit (range 7) 28112 | -2/Research | Identified exit to Access 28124 | -2/Research | Entered Access 28124 | -1/Access | Evolved 2 slots: Propulsion x1, Utility x1 28339 | -1/Access | Identified exit to Command 28519 | -1/Access | Lost 5 parts (2n2u1w) 28853 | -1/Access | Build established: Scavenger-Gunner 29108 | -1/Access | Identified exit to Surface 29218 | -1/Access | Found Gamma Bomb Array 29223 | -1/Access | Found Gamma Bomb Array 29225 | -1/Access | Found Gamma Bomb Array 29243 | -1/Access | Build established: Scavenger-Mutant 29381 | -1/Access | Garrison activated, responded to threat 29439 | -1/Access | Repaired Adv. Powered Armor 29624 | -1/Access | First assault squad dispatched 29635 | -1/Access | Destroyed 11 combat bots 29773 | -1/Access | System corruption reached 10% 29783 | -1/Access | Destroyed 7 combat bots 29859 | -1/Access | Lost 14 parts (2p3n4u5w) 29921 | -1/Access | System corruption reached 30% 29937 | -1/Access | Garrison activated, responded to threat 29962 | -1/Access | Core integrity fell below 50% 30004 | -1/Access | Released all parts (8) 30013 | -1/Access | Core integrity fell below 20% 30035 | -1/Access | Lost 14 parts (1p4n3u6w) 30040 | -1/Access | Destroyed by P-80 Master with Gamma Rifle Last Messages --------------- 30011_ Slammed into P-80 Master. 30012_ R-10 Processor collects Adv. Target Analyzer. 30012_ Slammed into P-80 Master. 30022_ R-10 Processor inserts Myomer Leg into recycling unit. 30023_ Acquired Unknown Energy Cannon. 30023_ Identified Enh. Nova Cannon. 30025_ R-10 Processor inserts Imp. Antigrav System into recycling unit. 30029_ Recycling unit begins recycling process. 30031_ R-10 Processor inserts Myomer Leg into recycling unit. 30032_ System corrupted: Enh. Nova Cannon targeting data glitched. 30032_ Destroyed Unknown Reactor. 30033_ System corrupted: Matter fused (-10). 30034_ System corrupted: Enh. Nova Cannon failed to cycle. 30036_ R-10 Processor inserts Adv. Heavy Treads into recycling unit. 30036_ System corrupted: Enh. Nova Cannon failed to cycle. 30036_ Critical hit. 30036_ Enh. Nova Cannon destroyed. 30039_ R-10 Processor inserts Imp. Force Field into recycling unit. 30040_ Recycling unit begins recycling process. Map ----- +----------------------------------------------------+ | ?????????????????????????????????????????????????? | | ?????????????????????????????????????????????????? | | ?????????????????????????????????????????????????? | | ?????????????????????????????????????????????????? | | ?????????????????????????????????????????????????? | | ?????????????????????????????????????????????????? | | ??????????????????????